bitfinex/quotes_ETHUSD_20241018
["timestamp","ask_amount","ask_price","bid_price","bid_amount"]
[1729255176798,6.81694,2619.9,2619.5,4.3540287]
[1729255180871,3.81709,2619.8,2619.5,0.5365487]
[1729255181068,3.81725,2619.7,2619.5,0.0785807]
[1729255181398,3.81744,2619.6,2619.3,0.7621]
[1729255182387,3.81724,2619.7,2619.3,0.7621]
[1729255182582,3.81743,2619.6,2619.3,0.7621]
[1729255184678,7.6349,2619.6,2619.3,0.7621]
[1729255185016,3.81743,2619.6,2619.3,0.7621]
[1729255186522,2.81743,2619.6,2619.3,0.7621]
[1729255186721,3.81736,2619.7,2619.3,0.7621]
[1729255187034,3.81737,2619.6,2619.3,0.7621]
[1729255187324,3.81737,2619.6,2619.4,0.07856556]
[1729255189393,4.63132,2619.5,2619.4,0.07856556]
[1729255189595,3.81737,2619.6,2619.4,0.07856556]
[1729255189902,7.63484,2619.6,2619.5,0.0784617]
[1729255190111,3.81753,2619.5,2619.1,3.81802]
[1729255190296,3.81753,2619.5,2619.2,0.07882126]
[1729255190985,3.81737,2619.6,2619.2,3.89677126]
[1729255191184,3.81718,2619.8,2619.4,0.8087]
[1729255191597,3.81724,2619.7,2619.5,0.07848834]
[1729255193976,3.8171,2619.8,2619.5,0.07848834]
[1729255194219,3.0,2619.9,2619.5,3.89600834]
[1729255194756,3.0,2619.9,2619.6,0.7643]
[1729255195025,3.0,2619.9,2619.6,1.61208683]
[1729255195208,3.0,2619.9,2619.7,0.07823802]
[1729255197328,3.81694,2619.9,2619.7,0.07823802]
[1729255201845,5.49684669,2619.9,2619.7,0.07823802]
[1729255202451,5.49698669,2619.8,2619.7,0.07823802]
[1729255202633,6.28498669,2619.8,2619.7,0.07823802]
[1729255202834,3.81748,2619.6,2619.1,8.40671]
[1729255203046,3.81737,2619.6,2619.2,3.81789]
[1729255203246,7.63458,2619.7,2619.2,3.89667216]
[1729255203953,3.81737,2619.6,2619.2,3.89667216]
[1729255204255,3.81737,2619.6,2619.3,0.84853722]
[1729255204458,3.81703,2619.9,2619.4,0.7796]
[1729255204633,3.81701,2619.9,2619.4,4.59722]
[1729255204803,3.81701,2619.9,2619.5,3.8175]
[1729255205005,3.0,2619.9,2619.6,0.8098]
[1729255205210,3.0,2619.9,2619.6,1.74807737]
[1729255206624,3.81666,2620.1,2619.7,3.8172]
[1729255206938,3.0,2620.2,2619.8,3.89515555]
[1729255207343,3.0,2620.2,2619.8,0.07807555]
[1729255207555,3.81665,2620.1,2619.6,9.30441217]
[1729255207713,6.8165,2620.2,2619.9,0.07795575]
[1729255207914,6.8165,2620.2,2619.7,4.74758122]
[1729255208140,6.8165,2620.2,2620.0,0.07783595]
[1729255208325,6.8165,2620.2,2619.7,4.74758122]
[1729255208525,6.8165,2620.2,2620.1,0.07771616]
[1729255208710,3.41282622,2620.6,2619.8,0.93746712]
[1729255208711,3.81612,2620.5,2620.2,0.7693]
[1729255208917,3.81635,2620.3,2620.1,0.07771616]
[1729255209158,3.81635,2620.3,2619.9,0.7693]
[1729255209317,3.81635,2620.3,2620.2,0.07759638]
[1729255209654,3.81635,2620.3,2619.9,4.58623]
[1729255209852,3.81635,2620.3,2620.2,0.07759638]
[1729255210064,3.81635,2620.3,2619.9,4.58623]
[1729255210228,3.81635,2620.3,2620.2,0.07759638]
[1729255210429,4.57105,2620.5,2620.0,3.81668]
[1729255210628,3.0,2620.4,2620.2,0.07759638]
[1729255210842,3.0,2620.4,2620.1,0.07771616]
[1729255211032,3.0,2620.4,2620.3,0.07747661]
[1729255211359,3.0,2620.4,2620.0,3.81668]
[1729255211360,3.0,2620.4,2620.2,0.07759638]
[1729255211529,3.0,2620.4,2620.0,3.81668]
[1729255211717,3.0,2620.4,2620.3,0.07747661]
[1729255211917,3.0,2620.4,2620.0,3.81668]
[1729255212213,3.0,2620.4,2620.3,0.07747661]
[1729255212423,3.0,2620.4,2620.0,3.81668]
[1729255212628,3.0,2620.4,2620.3,0.07747661]
[1729255212827,3.0,2620.4,2620.0,3.81668]
[1729255213332,3.0,2620.4,2620.1,4.70854616]
[1729255213655,3.0,2620.4,2620.1,5.56109378]
[1729255214059,3.0,2620.6,2620.2,3.81649]
[1729255214356,3.0,2620.8,2620.3,0.7794]
[1729255214565,3.0,2620.8,2620.3,4.67293744]
[1729255214566,6.81563,2620.8,2620.3,4.67293744]
[1729255215912,3.0,2620.8,2620.3,5.60712695]
[1729255216117,3.81535,2621.0,2620.5,3.81603]
[1729255216359,3.8155,2620.9,2620.4,4.66952768]
[1729255216528,0.8155,2621.2,2620.7,0.7762]
[1729255216529,3.81521,2621.1,2620.7,0.7762]
[1729255217063,3.81536,2621.0,2620.8,0.07666872]
[1729255217424,3.81536,2621.0,2620.7,0.7762]
[1729255217625,3.81536,2621.0,2620.9,0.07654901]
[1729255217824,3.81536,2621.0,2620.8,0.07666872]
[1729255218147,6.8152,2621.1,2620.9,0.07654901]
[1729255218458,3.0,2621.1,2620.7,0.7762]
[1729255218635,3.0,2621.1,2621.0,0.0764293]
[1729255218832,6.81527,2621.1,2620.7,0.7762]
[1729255219027,6.81527,2621.1,2621.0,0.0764293]
[1729255219233,6.81527,2621.1,2620.7,0.7762]
[1729255219458,6.81527,2621.1,2621.0,0.0764293]
[1729255219920,6.81527,2621.1,2620.7,0.7762]
[1729255220121,6.81527,2621.1,2621.0,0.0764293]
[1729255220421,3.81534,2621.0,2620.7,0.7762]
[1729255220621,3.81559,2620.9,2620.5,1.36807372]
[1729255220844,3.41282622,2620.8,2620.3,0.8077]
[1729255221048,3.81607,2620.5,2620.1,0.8077]
[1729255224227,3.81593,2620.6,2620.1,0.8077]
[1729255224561,3.81593,2620.6,2620.1,4.62427]
[1729255225562,0.7759,2620.7,2620.1,4.62427]
[1729255225760,0.7759,2620.7,2620.2,4.278847]
[1729255225934,0.7759,2620.7,2620.2,4.35623421]
[1729255228161,0.7759,2620.7,2620.2,0.53981421]
[1729255228162,3.81602,2620.6,2620.2,0.53981421]
[1729255228324,3.81607,2620.5,2620.2,0.07738721]
[1729255228537,3.81607,2620.5,2619.9,8.44037]
[1729255228818,3.81607,2620.5,2620.3,0.07721774]
[1729255229019,3.81607,2620.5,2620.0,3.81678]
[1729255229222,3.81607,2620.5,2620.4,0.07709798]
[1729255229456,3.81607,2620.5,2619.9,4.62353]
[1729255229777,0.8015,2620.3,2619.8,0.05726693]
[1729255229928,3.81667,2620.1,2619.8,0.05726693]
[1729255230372,3.8168,2620.0,2619.8,0.05726693]
[1729255230658,3.81693,2619.9,2619.8,0.05726693]
[1729255231047,0.8015,2619.9,2619.8,0.05726693]
[1729255231958,3.81681,2620.0,2619.8,0.05726693]
[1729255233739,3.81662,2620.2,2619.9,0.7709]
[1729255233938,3.81667,2620.1,2619.8,0.05726693]
[1729255234125,3.81664,2620.1,2619.8,0.05726693]
[1729255234641,3.81664,2620.1,2619.7,0.7709]
[1729255235029,3.7825,2620.2,2619.5,0.7797]
[1729255235371,3.7825,2620.2,2619.1,0.7797]
[1729255235372,3.41282622,2619.7,2619.1,0.7797]
[1729255235542,3.81773,2619.4,2619.1,0.7797]
[1729255235742,3.81773,2619.4,2618.9,3.83739094]
[1729255235743,3.81787,2619.3,2618.9,0.79878094]
[1729255236062,3.81773,2619.4,2618.9,5.44740732]
[1729255236672,3.81767,2619.4,2618.9,0.7797]
[1729255236898,3.81767,2619.4,2618.9,4.59805]
[1729255237677,3.81767,2619.4,2618.9,0.7797]
[1729255237830,3.81767,2619.4,2618.9,4.59801]
[1729255240475,3.81781,2619.3,2618.9,0.7797]
[1729255240854,7.63546,2619.4,2618.9,0.7797]
[1729255241172,7.63546,2619.4,2619.0,0.07897078]
[1729255241173,4.5766,2619.1,2619.0,0.07897078]
[1729255241369,4.5766,2619.1,2618.7,0.05729229]
[1729255241547,3.81826,2619.0,2618.8,0.07921057]
[1729255241745,3.81826,2619.0,2618.7,0.05729229]
[1729255241949,3.81826,2619.0,2618.8,0.07921057]
[1729255242261,3.81826,2619.0,2618.7,0.05729229]
[1729255242436,3.81826,2619.0,2618.9,0.07909067]
[1729255242637,3.81826,2619.0,2618.8,0.07921057]
[1729255242835,3.81826,2619.0,2618.9,0.07909067]
[1729255243146,3.81826,2619.0,2618.7,0.05729229]
[1729255243345,4.57661,2619.1,2618.8,0.07921057]
[1729255243546,4.57661,2619.1,2618.7,0.05729229]
[1729255243765,4.57661,2619.1,2618.8,0.07921057]
[1729255243947,4.57661,2619.1,2618.7,0.05729229]
[1729255244272,3.81839,2619.0,2618.8,0.07921057]
[1729255244473,3.81838,2619.0,2618.8,0.07921057]
[1729255244678,3.41282622,2618.9,2618.3,0.7609]
[1729255244968,0.8133,2618.7,2618.3,0.7609]
[1729255245833,0.8133,2618.7,2618.3,4.58013]
[1729255247257,3.81855,2618.8,2618.3,4.58013]
[1729255248186,3.81868,2618.7,2618.3,0.7609]
[1729255249365,3.81855,2618.8,2618.3,5.53355809]
[1729255249539,3.81855,2618.8,2618.3,1.71430809]
[1729255249540,7.63718,2618.8,2618.3,1.71430809]
[1729255249740,3.81855,2618.8,2618.3,5.53354809]
[1729255250141,3.81876,2618.7,2618.3,1.71430809]
[1729255250439,3.81884,2618.6,2618.1,0.7972]
[1729255250646,3.81884,2618.6,2618.1,4.61664]
[1729255250855,3.81876,2618.7,2618.1,4.61664]
[1729255251262,3.81876,2618.7,2618.2,3.8194]
[1729255252646,3.81876,2618.7,2618.2,7.6388]
[1729255252847,3.0,2618.7,2618.2,7.6388]
[1729255253077,3.0,2618.7,2618.2,8.49377407]
[1729255253681,3.0,2618.7,2618.2,8.49371407]
[1729255253979,6.81835,2619.0,2618.5,3.81897]
[1729255254181,6.81835,2619.0,2618.4,3.81911]
[1729255254182,3.81839,2618.9,2618.4,3.81911]
[1729255254348,3.81839,2618.9,2618.4,4.74914541]
[1729255255058,3.0,2619.0,2618.4,0.93003541]
[1729255255385,6.81827,2619.0,2618.6,0.7773]
[1729255256058,6.81827,2619.0,2618.7,0.07690765]
[1729255257471,10.6366,2619.0,2618.7,0.07690765]
[1729255257674,6.81827,2619.0,2618.7,0.07690765]
[1729255258192,10.63662,2619.0,2618.7,0.07690765]
[1729255258375,6.81827,2619.0,2618.7,0.07690765]
[1729255258702,3.81849,2618.9,2618.7,0.07690765]
[1729255260178,3.0,2618.9,2618.7,0.07690765]
[1729255260379,3.0,2618.9,2618.6,0.7773]
[1729255260583,3.0,2618.9,2618.7,0.07690232]
[1729255261412,6.8184,2618.9,2618.7,0.07690232]
[1729255262278,3.0,2619.1,2618.7,0.54421855]
[1729255262508,3.0,2619.1,2618.7,4.36289855]
[1729255262884,3.81808,2619.2,2618.7,4.36282855]
[1729255263211,4.62159,2619.4,2618.8,0.7907]
[1729255263381,4.62159,2619.4,2618.8,4.60912]
[1729255263382,8.43939,2619.4,2618.8,4.60912]
[1729255263586,4.62159,2619.4,2618.9,0.53755674]
[1729255263897,3.81788,2619.3,2618.9,0.07664474]
[1729255264418,3.8175,2619.6,2619.0,4.61256]
[1729255264419,3.81752,2619.5,2619.0,4.61256]
[1729255264618,3.81755,2619.5,2619.0,4.61256]
[1729255264921,3.81755,2619.5,2619.1,0.07637653]
[1729255265108,3.81755,2619.5,2619.1,0.54527018]
[1729255266518,3.81755,2619.5,2619.1,4.36333018]
[1729255266519,3.0,2619.5,2619.1,4.36333018]
[1729255267026,6.81718,2619.8,2619.2,4.57647]
[1729255267234,3.8169,2620.0,2619.4,0.7586]
[1729255267384,3.8169,2620.0,2619.5,3.81742]
[1729255267590,3.8169,2620.0,2619.6,0.07566711]
[1729255268804,3.0,2620.1,2619.7,0.8176]
[1729255269008,3.0,2620.1,2619.8,0.07542746]
[1729255269213,3.0,2620.1,2619.7,0.8176]
[1729255269405,3.0,2620.1,2619.8,0.07536884]
[1729255269622,3.0,2620.2,2619.7,0.8176]
[1729255269780,3.0,2620.0,2619.8,0.07536884]
[1729255269983,6.81638,2620.3,2619.7,4.63475]
[1729255270324,6.81658,2620.2,2619.8,0.46753014]
[1729255270527,6.81658,2620.2,2619.8,0.54289898]
[1729255271032,7.63344,2620.1,2619.8,0.54289898]
[1729255271203,7.63344,2620.1,2619.8,0.07536884]
[1729255271404,3.81667,2620.1,2619.7,0.8176]
[1729255271806,3.81667,2620.1,2619.8,0.07532444]
[1729255272004,3.81667,2620.1,2619.7,0.8176]
[1729255272207,3.81667,2620.1,2619.8,0.07532444]
[1729255272525,3.81667,2620.1,2619.7,0.8176]
[1729255272835,3.81667,2620.1,2619.9,0.07520464]
[1729255272993,6.81667,2620.1,2620.0,0.07508484]
[1729255273194,6.81667,2620.1,2619.7,0.8176]
[1729255273415,6.81667,2620.1,2619.8,0.07532444]
[1729255273585,6.81667,2620.1,2619.7,0.8176]
[1729255273792,6.81667,2620.1,2619.8,0.07532444]
[1729255274032,3.8168,2620.0,2619.7,0.8176]
[1729255274215,3.8168,2620.0,2619.8,0.07532444]
[1729255274622,3.8168,2620.0,2619.7,0.8176]
[1729255274801,3.8168,2620.0,2619.8,0.07532444]
[1729255275000,3.8168,2620.0,2619.7,0.8176]
[1729255275320,3.8168,2620.0,2619.3,3.81771]
[1729255275321,3.81693,2619.9,2619.8,0.07532444]
[1729255275519,3.8172,2619.8,2619.4,0.8277]
[1729255276999,3.81708,2619.8,2619.4,0.8277]
[1729255277296,3.41282622,2619.9,2619.2,3.81795]
[1729255277297,7.63423,2619.7,2619.2,3.81795]
[1729255277501,6.81723,2619.7,2619.3,0.7844]
[1729255277691,10.63456,2619.7,2619.3,0.7844]
[1729255277892,6.81723,2619.7,2619.3,0.7844]
[1729255278093,6.81709,2619.8,2619.4,3.81756]
[1729255278330,3.8168,2620.0,2619.6,0.8189]
[1729255278996,3.81702,2619.9,2619.6,0.8189]
[1729255279398,3.81718,2619.8,2619.4,0.7747]
[1729255279603,3.81733,2619.7,2619.4,0.7747]
[1729255280509,3.81744,2619.6,2619.4,0.7747]
[1729255280697,3.81776,2619.4,2619.1,0.8007]
[1729255280894,3.41282622,2619.6,2619.1,0.8007]
[1729255281101,3.41282622,2619.6,2618.9,0.85798656]
[1729255281102,3.81795,2619.2,2618.9,0.85798656]
[1729255281309,3.81814,2619.1,2618.9,0.85798656]
[1729255281706,3.81814,2619.1,2618.9,0.05728656]
[1729255282046,3.81795,2619.2,2618.9,0.05728656]
[1729255282249,7.63602,2619.2,2618.9,0.05728656]
[1729255282459,3.81795,2619.2,2618.9,0.05728656]
[1729255286027,3.81795,2619.2,2619.0,0.07625122]
[1729255287330,3.81783,2619.3,2619.0,0.07625122]
[1729255287538,3.81783,2619.3,2619.1,0.7788]
[1729255287852,3.81783,2619.3,2619.2,0.07608962]
[1729255289763,3.81769,2619.4,2619.2,0.07608962]
[1729255289977,6.81744,2619.6,2619.2,0.07608962]
[1729255290466,3.0,2619.6,2619.2,0.07608962]
[1729255290772,3.0,2619.7,2619.4,0.8325]
[1729255290955,3.0,2619.8,2619.4,4.65015]
[1729255291275,6.81709,2619.8,2619.5,0.07570519]
[1729255292264,3.81723,2619.7,2619.5,0.07570519]
[1729255294935,6.81715,2619.8,2619.5,0.07570519]
[1729255295364,3.0,2619.8,2619.5,0.07570519]
[1729255295572,3.0,2619.8,2619.5,0.54829871]
[1729255296366,6.81714,2619.8,2619.5,0.07570519]
[1729255298777,3.81714,2619.8,2619.5,0.07570519]
[1729255300416,3.81695,2619.9,2619.5,0.07570519]
[1729255301009,10.98159622,2619.6,2619.5,0.07570519]
[1729255301496,10.98159622,2619.6,2618.9,0.82858656]
[1729255301497,3.81784,2619.3,2618.9,0.82858656]
[1729255301670,3.81784,2619.3,2618.9,1.67514922]
[1729255301870,3.81784,2619.3,2619.0,0.07624943]
[1729255302976,3.8181,2619.1,2619.0,0.07624943]
[1729255303774,0.814,2619.2,2619.0,0.07624943]
[1729255303775,4.63197,2619.2,2619.0,0.07624943]
[1729255304111,3.81792,2619.3,2619.0,0.07624943]
[1729255305203,3.0,2619.5,2619.1,0.8123]
[1729255305402,6.81747,2619.6,2619.1,4.63033]
[1729255305705,3.8176,2619.5,2619.2,0.0760381]
[1729255307387,3.81773,2619.4,2619.2,0.0760381]
[1729255307588,3.81754,2619.5,2619.2,0.0760381]
[1729255308675,3.81781,2619.3,2619.2,0.0760381]
[1729255309297,3.81814,2619.1,2618.9,0.05728656]
[1729255310112,3.81805,2619.2,2618.9,0.05728656]
[1729255310386,3.81792,2619.3,2618.9,0.05728656]
[1729255310586,3.8181,2619.1,2618.9,0.05728656]
[1729255311615,3.8181,2619.1,2618.8,0.7929]
[1729255311908,3.8181,2619.1,2618.8,1.26169285]
[1729255316169,3.8181,2619.1,2618.9,0.07644926]
[1729255318389,3.81798,2619.2,2618.9,0.07644926]
[1729255321312,3.81818,2619.1,2618.9,0.07644926]
[1729255324018,2.9584085,2619.1,2618.9,0.07644926]
[1729255324217,3.81796,2619.2,2618.9,0.07644926]
[1729255328624,3.81813,2619.1,2618.9,0.07644926]
[1729255328835,5.4988984,2619.0,2618.9,0.07644926]
[1729255329120,3.81906,2618.5,2618.3,0.05729928]
[1729255329475,5.4997084,2618.5,2618.3,0.05729928]
[1729255329724,6.2944784,2618.6,2618.3,0.05729928]
[1729255329924,0.795,2618.6,2618.3,0.05729928]
[1729255331122,0.795,2618.6,2618.4,0.07709684]
[1729255336918,3.81876,2618.7,2618.4,0.07709684]
[1729255341362,3.81893,2618.6,2618.4,0.07709684]
[1729255341567,3.81876,2618.7,2618.4,0.07709684]
[1729255343666,3.0,2618.9,2618.5,0.818]
[1729255343965,3.0,2618.9,2618.6,3.89580713]
[1729255344167,3.0,2618.9,2618.6,3.89574713]
[1729255344351,3.0,2619.1,2618.7,3.8186]
[1729255344554,6.81811,2619.1,2618.6,3.89574713]
[1729255344863,6.81811,2619.1,2618.7,0.54824192]
[1729255345097,3.81826,2619.0,2618.7,0.07686721]
[1729255345255,4.64013,2618.9,2618.5,0.818]
[1729255345424,3.81854,2618.8,2618.3,4.62988928]
[1729255345626,3.81854,2618.8,2618.6,0.07698713]
[1729255345861,3.81854,2618.8,2618.3,4.62987928]
[1729255346062,3.81854,2618.8,2618.7,0.07686721]
[1729255346273,3.81854,2618.8,2618.3,8.44901928]
[1729255346473,3.81854,2618.8,2618.3,4.62984928]
[1729255346638,3.81854,2618.8,2618.4,0.07722699]
[1729255347353,3.81872,2618.7,2618.4,0.07722699]
[1729255347676,3.81898,2618.5,2618.4,0.07722699]
[1729255348756,4.59314,2618.6,2618.4,0.07722699]
[1729255349684,4.59314,2618.6,2618.1,4.59129]
[1729255349995,8.41206,2618.6,2618.2,0.92990985]
[1729255350276,4.59314,2618.6,2618.2,0.92990985]
[1729255350488,3.81884,2618.6,2618.2,0.92990985]
[1729255350983,4.64018,2618.8,2618.2,0.92990985]
[1729255351187,3.8187,2618.7,2618.2,3.89676378]
[1729255351481,3.81868,2618.7,2618.2,3.89676378]
[1729255351650,3.81868,2618.7,2618.2,0.07744378]
[1729255351651,3.81885,2618.6,2618.2,0.07744378]
[1729255351841,5.50046234,2618.6,2618.2,0.07744378]
[1729255352041,3.81885,2618.6,2618.2,0.07744378]
[1729255352377,3.81868,2618.7,2618.3,3.81927]
[1729255352779,6.81813,2619.1,2618.3,3.81927]
[1729255352780,2.47481234,2619.0,2618.5,0.7983]
[1729255352990,4.61146,2619.0,2618.5,8.43601]
[1729255353187,1.68161234,2619.1,2618.6,3.89580822]
[1729255353499,5.49973234,2619.1,2618.6,8.35214028]
[1729255353643,7.61116,2619.2,2618.6,6.21492262]
[1729255354014,7.35,2619.4,2618.6,6.21492262]
[1729255354015,7.35,2619.4,2619.1,3.8181]
[1729255354143,7.35,2619.4,2619.1,0.7955]
[1729255354471,11.16769,2619.4,2619.2,0.07623575]
[1729255354671,11.16769,2619.4,2618.9,3.81838]
[1729255354672,5.49930234,2619.4,2618.9,4.60758]
[1729255354965,5.49930234,2619.4,2619.0,0.70539473]
[1729255355747,5.49930234,2619.4,2619.0,4.52363473]
[1729255356573,1.68161234,2619.3,2619.0,0.70539473]
[1729255357406,1.68161234,2619.1,2619.0,0.0764755]
[1729255357619,9.29081234,2619.1,2619.0,0.0764755]
[1729255357817,3.81827,2619.0,2618.5,4.63098]
[1729255357961,5.49988234,2619.0,2618.5,5.76411732]
[1729255358601,9.31823234,2619.0,2618.5,5.76411732]
[1729255358800,5.49988234,2619.0,2618.5,9.58301732]
[1729255358999,5.49988234,2619.0,2618.5,5.76411732]
[1729255359199,5.49988234,2619.0,2618.5,9.58300732]
[1729255359510,5.49988234,2619.0,2618.6,3.81879]
[1729255359657,5.49988234,2619.0,2618.5,5.76411732]
[1729255359861,5.49988234,2619.0,2618.6,3.81879]
[1729255360097,7.60922,2619.1,2618.6,5.50040234]
[1729255360306,5.49995234,2619.0,2618.6,1.12645197]
[1729255360500,3.81834,2619.0,2618.6,1.12645197]
[1729255360884,3.81834,2619.0,2618.7,0.07676589]
[1729255361859,3.81841,2618.9,2618.7,0.07676589]
[1729255362064,5.50002234,2618.9,2618.7,0.07676589]
[1729255362306,3.81841,2618.9,2618.7,0.07676589]
[1729255362602,3.81834,2619.0,2618.7,0.07676589]
[1729255364507,7.60921,2619.1,2618.7,0.07676589]
[1729255364706,3.0,2619.1,2618.8,6.30841234]
[1729255364904,0.7659,2619.3,2618.9,3.81831]
[1729255365208,3.81783,2619.3,2618.8,4.62692]
[1729255365424,3.81783,2619.3,2618.9,4.3418039]
[1729255365573,3.81783,2619.3,2618.9,0.5234439]
[1729255366274,3.81783,2619.3,2618.9,4.3418039]
[1729255370858,3.81767,2619.4,2619.0,1.68161234]
[1729255371017,3.81767,2619.4,2618.9,6.02333624]
[1729255371216,3.81767,2619.4,2619.0,0.68317362]
[1729255373361,4.58344,2619.5,2619.0,2.36478596]
[1729255373563,3.0,2619.4,2619.1,3.81808]
[1729255374160,3.0,2619.4,2619.1,4.62458]
[1729255374366,6.8177,2619.4,2619.1,0.8065]
[1729255374576,6.81775,2619.4,2619.1,0.8065]
[1729255374895,8.49936234,2619.4,2618.9,1.3299439]
[1729255375101,8.49936234,2619.4,2619.0,4.50124562]
[1729255375394,5.49977234,2619.1,2618.7,0.88326589]
[1729255375596,3.81796,2619.2,2618.7,4.70192589]
[1729255376462,3.81796,2619.2,2618.8,3.81852]
[1729255376656,3.81795,2619.2,2618.7,6.38355823]
[1729255376852,1.68161234,2619.3,2618.8,0.64408511]
[1729255377053,3.81804,2619.2,2618.8,4.46260511]
[1729255377259,3.81804,2619.2,2618.8,0.64408511]
[1729255378983,3.81804,2619.2,2618.8,4.46260511]
[1729255379297,3.81783,2619.3,2618.9,3.81837]
[1729255379497,7.58351,2619.5,2619.1,0.759]
[1729255380474,3.81768,2619.4,2619.1,0.759]
[1729255380674,3.81782,2619.3,2619.1,0.759]
[1729255380873,3.81782,2619.3,2619.0,0.62204326]
[1729255381680,3.81768,2619.4,2619.0,4.44027326]
[1729255381888,3.81768,2619.4,2619.1,0.52093733]
[1729255382095,9.26512234,2619.5,2619.1,0.52093733]
[1729255382402,7.58351,2619.5,2619.1,0.52093733]
[1729255382902,11.40114,2619.5,2619.1,0.52093733]
[1729255383067,13.08275234,2619.5,2619.1,0.52093733]
[1729255383404,7.58351,2619.5,2619.1,0.52093733]
[1729255383773,7.58351,2619.5,2619.1,4.33901733]
[1729255384179,6.81761,2619.5,2619.1,4.33901733]
[1729255384519,6.81761,2619.5,2619.2,0.66426729]
[1729255384685,10.63521,2619.5,2619.2,0.66426729]
[1729255385313,6.8176,2619.5,2619.2,0.66426729]
[1729255385616,10.63521,2619.5,2619.2,0.66426729]
[1729255386173,6.8176,2619.5,2619.2,0.66426729]
[1729255386473,10.63524,2619.5,2619.2,0.66426729]
[1729255386687,10.63524,2619.5,2619.1,0.52093733]
[1729255386887,6.8176,2619.5,2619.1,0.52093733]
[1729255387711,3.81773,2619.4,2619.1,0.52093733]
[1729255389219,5.49967234,2619.2,2618.7,4.67733589]
[1729255389373,3.81806,2619.2,2618.7,4.67733589]
[1729255389996,4.63868,2619.3,2618.8,3.81853]
[1729255390239,4.63868,2619.3,2618.8,5.50014234]
[1729255390401,4.63868,2619.3,2618.9,0.63588082]
[1729255390791,3.81797,2619.2,2618.9,0.63588082]
[1729255390988,3.81788,2619.3,2618.9,0.63588082]
[1729255391236,7.63581,2619.3,2618.9,0.63588082]
[1729255391529,3.81788,2619.3,2618.9,4.45426082]
[1729255391678,3.81788,2619.3,2619.0,0.99543232]
[1729255391877,3.81803,2619.2,2618.8,3.81845]
[1729255392317,3.81788,2619.3,2618.8,3.81845]
[1729255392613,3.81788,2619.3,2618.8,5.50006234]
[1729255393490,3.81788,2619.3,2618.9,3.81839]
[1729255393896,3.81768,2619.4,2619.0,4.64054]
[1729255394095,4.61623,2619.5,2619.1,0.464054]
[1729255394300,4.61623,2619.5,2619.0,4.64048]
[1729255394593,3.81772,2619.4,2619.0,4.64048]
[1729255398399,3.81754,2619.5,2619.0,4.64046]
[1729255399227,1.68161234,2619.6,2618.9,2.88123319]
[1729255399228,1.68161234,2619.3,2618.9,1.19962085]
[1729255399439,6.77639684,2619.2,2618.8,1.97742085]
[1729255399620,3.81811,2619.1,2618.8,0.7778]
[1729255400408,4.63348,2619.0,2618.7,1.27638674]
[1729255401797,0.8152,2619.0,2618.7,0.07676589]
[1729255403334,0.8152,2619.0,2618.7,3.89543589]
[1729255403509,6.81805,2619.2,2618.8,0.68339637]
[1729255403712,6.81805,2619.2,2618.7,6.77666908]
[1729255404095,3.0,2619.2,2618.8,2.44091234]
[1729255404331,3.0,2619.2,2618.8,6.25937234]
[1729255404857,3.0,2619.2,2618.8,4.57776]
[1729255406640,4.6237,2619.3,2618.8,4.57776]
[1729255406931,4.6237,2619.3,2618.9,1.13543691]
[1729255407608,8.44162,2619.3,2618.9,1.13543691]
[1729255407809,4.6237,2619.3,2618.9,1.13543691]
[1729255408819,0.7618,2619.7,2619.2,1.68161234]
[1729255409043,3.81708,2619.8,2619.4,5.49915234]
[1729255409243,0.7618,2619.9,2619.5,0.63488023]
[1729255409415,4.57875,2619.9,2619.5,0.63488023]
[1729255410853,3.7618,2619.9,2619.5,4.45237023]
[1729255411216,3.0,2620.0,2619.6,1.68161234]
[1729255411425,3.0,2620.0,2619.7,0.99513526]
[1729255411629,6.81681,2620.0,2619.7,0.99513526]
[1729255413056,3.7618,2620.1,2619.7,1.76843526]
[1729255413216,3.8166,2620.2,2619.8,1.68161234]
[1729255413416,7.63322,2620.2,2619.7,7.2672676]
[1729255413653,7.63322,2620.2,2619.8,0.72672676]
[1729255414158,3.81665,2620.1,2619.8,0.72672676]
[1729255416127,3.81676,2620.1,2619.7,0.7733]
[1729255416467,5.49837234,2620.1,2619.7,0.7733]
[1729255416680,5.49841234,2620.0,2619.7,0.7733]
[1729255416980,3.8168,2620.0,2619.7,0.7733]
[1729255417578,3.81671,2620.1,2619.7,0.7733]
[1729255417793,3.81671,2620.1,2619.7,1.78227123]
[1729255418087,5.49832234,2620.1,2619.7,0.7733]
[1729255418243,3.81671,2620.1,2619.7,0.7733]
[1729255419477,5.49832234,2620.1,2619.7,0.7733]
[1729255419633,3.81671,2620.1,2619.7,0.7733]
[1729255419834,3.8168,2620.0,2619.7,0.7733]
[1729255420081,1.68161234,2620.1,2619.7,0.7733]
[1729255420312,3.81666,2620.1,2619.7,0.7733]
[1729255422465,3.0,2620.2,2619.8,5.49867234]
[1729255422672,4.57816,2620.3,2619.8,5.49867234]
[1729255422673,3.0,2620.3,2619.8,5.49867234]
[1729255422902,3.0,2620.3,2619.8,3.817]
[1729255423100,3.8035,2620.5,2620.0,1.68161234]
[1729255423250,7.61957,2620.5,2620.1,0.792]
[1729255423597,3.8035,2620.5,2620.1,0.792]
[1729255423749,3.8035,2620.5,2620.2,1.68161234]
[1729255423750,3.0,2620.5,2620.2,1.68161234]
[1729255423952,3.81575,2620.8,2620.3,0.7875]
[1729255424179,3.81571,2620.8,2620.3,4.60385]
[1729255425157,3.81571,2620.8,2620.3,6.28546234]
[1729255425380,4.62475,2621.0,2620.6,1.68161234]
[1729255425581,4.62475,2621.0,2620.3,4.60377]
[1729255425582,1.68161234,2620.8,2620.3,4.60377]
[1729255425897,3.81557,2620.9,2620.3,4.60377]
[1729255425898,3.81557,2620.9,2620.4,0.5371243]
[1729255426093,7.35,2621.2,2620.7,3.81577]
[1729255426291,4.56878,2621.3,2620.8,3.81561]